fUSD/lending_fUSD_20260421
["ID","MTS","AMOUNT","RATE_DAILY","PERIOD"]
[420887048,1776701038488,-154.4025686,0.0004114,120]
[420887049,1776701038518,-496.75491426,0.00041146,120]
[420887050,1776701038550,-5785.0,0.00041187,120]
[420887051,1776701038580,-1477.38,0.000412,120]
[420887052,1776701038612,-1576.41,0.000412,120]
[420887053,1776701038647,-6513.24925921,0.00041208,97]
[420887054,1776701038679,-232.0,0.00041219,30]
[420887055,1776701038709,-496.75491426,0.00041225,120]
[420887056,1776701038740,-156.0,0.0004123,120]
[420887057,1776701038773,-496.75491426,0.00041259,120]
[420887058,1776701038804,-500.0,0.00041273,120]
[420887059,1776701038835,-332.33,0.00041287,30]
[420887060,1776701038867,-211.21955619,0.00041288,120]
[420887061,1776701038898,-220.84872753,0.00041288,120]
[420887062,1776701038930,-157.18151523,0.00041292,120]
[420887063,1776701038961,-183.38,0.00041294,30]
[420887064,1776701038992,-638.27,0.00041295,30]
[420887065,1776701039022,-1000.0,0.000413,30]
[420887066,1776701039052,-1000.0,0.000413,30]
[420887067,1776701039084,-1393.8,0.00041316,120]
[420887068,1776701039114,-496.75491426,0.00041393,120]
[420887069,1776701039145,-564.98,0.000414,120]
[420887070,1776701039176,-1613.108,0.000414,30]
[420887071,1776701039599,-1613.1,0.000414,120]
[420887072,1776701039633,-1613.108,0.000414,120]
[420887073,1776701039665,-1613.1,0.000414,120]
[420887074,1776701039696,-234.88433273,0.00041404,30]
[420887075,1776701039727,-150.99476562,0.00041404,30]
[420887076,1776701039759,-154.4025686,0.00041404,30]
[420887077,1776701039791,-268.43923741,0.00041414,120]
[420887078,1776701039823,-150.99476562,0.00041414,120]
[420887079,1776701039855,-154.4025686,0.00041414,120]
[420887080,1776701039888,-1393.8,0.00041416,120]
[420887081,1776701039919,-700.0,0.00041426,120]
[420887082,1776701039951,-6475.98,0.00041452,120]
[420887083,1776701039984,-150.0,0.00041452,120]
[420887084,1776701040017,-583.41,0.00041452,120]
[420887085,1776701040050,-150.0,0.00041452,120]
[420887086,1776701040084,-226.2,0.00041452,120]
[420887087,1776701040116,-496.75491426,0.00041456,120]
[420887088,1776701040149,-500.0,0.000415,45]
[420887089,1776701040182,-500.0,0.000415,45]
[420887090,1776701040214,-500.0,0.000415,45]
[420887091,1776701040247,-500.0,0.000415,45]
[420887092,1776701040280,-500.0,0.000415,45]
[420887093,1776701040312,-1000.0,0.000415,30]
[420887094,1776701040345,-500.0,0.000415,45]
[420887095,1776701040378,-500.0,0.000415,45]
[420887096,1776701040412,-500.0,0.000415,45]
[420887097,1776701040445,-500.0,0.000415,45]
[420887098,1776701040477,-500.0,0.000415,45]
[420887099,1776701040512,-500.0,0.000415,45]
[420887100,1776701040545,-500.0,0.000415,45]
[420887101,1776701040579,-500.0,0.000415,45]
[420887102,1776701040612,-500.0,0.000415,45]
[420887103,1776701040645,-500.0,0.000415,45]
[420887104,1776701040677,-500.0,0.000415,45]
[420887105,1776701040710,-500.0,0.000415,45]
[420887106,1776701040742,-500.0,0.000415,45]
[420887107,1776701040776,-500.0,0.000415,45]
[420887108,1776701040809,-500.0,0.000415,45]
[420887109,1776701040842,-500.0,0.000415,45]
[420887110,1776701040874,-500.0,0.000415,45]
[420887111,1776701040906,-500.0,0.000415,45]
[420887112,1776701040940,-500.0,0.000415,45]
[420887113,1776701040975,-500.0,0.000415,45]
[420887114,1776701041007,-153.0,0.000415,120]
[420887115,1776701041039,-600.6252357,0.000415,120]
[420887116,1776701041071,-2000.0,0.000415,60]
[420887117,1776701041102,-1000.0,0.000415,120]
[420887118,1776701041135,-500.0,0.000415,120]
[420887119,1776701041167,-2552.81,0.000415,120]
[420887120,1776701041198,-1000.0,0.000415,80]
[420887121,1776701041231,-1000.0,0.000415,70]
[420887122,1776701041264,-1000.0,0.000415,45]
[420887123,1776701041298,-1000.0,0.000415,50]
[420887124,1776701041331,-420.0,0.000415,120]
[420887125,1776701041363,-349.0,0.000415,120]
[420887126,1776701041396,-193.0,0.00041507,30]
[420887127,1776701041428,-8934.55686986,0.0004151,120]
[420887128,1776701041458,-151.0,0.00041511,30]
[420887129,1776701041489,-332.33,0.00041512,30]
[420887130,1776701041522,-1393.8,0.00041516,120]
[420887131,1776701041553,-496.75491426,0.00041526,120]
[420887132,1776701041588,-325133.5601,0.00041532,30]
[420887133,1776701041619,-805.0,0.00041538,120]
[420887134,1776701041650,-496.75491426,0.00041592,120]
[420887135,1776701041680,-2193.73133099,0.000416,120]
[420887136,1776701041711,-2330.16090998,0.000416,120]
[420887137,1776701041741,-1647.87086454,0.000416,120]
[420887138,1776701041773,-1091.62268428,0.000416,120]
[420887139,1776701041806,-1184.84916998,0.000416,120]
[420887140,1776701041838,-496.75491426,0.00041614,120]
[420887141,1776701041874,-1393.8,0.00041616,120]
[420887142,1776701041908,-3000.0,0.00041619,30]
[420887143,1776701041943,-3000.0,0.00041619,30]
[420887144,1776701041976,-3000.0,0.00041619,30]
[420887145,1776701042009,-3000.0,0.00041619,30]
[420887146,1776701042042,-3000.0,0.00041619,30]
[420887147,1776701042073,-3000.0,0.00041619,30]
[420887148,1776701042104,-3000.0,0.00041619,30]
[420887149,1776701042136,-3000.0,0.00041619,30]
[420887150,1776701042168,-3000.0,0.00041619,30]
[420887151,1776701042199,-3000.0,0.00041619,30]
[420887152,1776701042230,-3000.0,0.00041619,30]
[420887153,1776701042261,-3000.0,0.00041619,30]
[420887154,1776701042292,-1383.78,0.00041619,30]
[420887155,1776701042324,-1500.0,0.00041643,30]
[420887156,1776701042355,-1500.0,0.00041643,30]
[420887157,1776701042385,-500.0,0.00041652,120]
[420887158,1776701042416,-2050.0,0.00041671,30]
[420887159,1776701042447,-2000.0,0.00041671,30]
[420887160,1776701042478,-2000.0,0.00041671,30]
[420887161,1776701042509,-1000.0,0.00041671,30]
[420887162,1776701042540,-234.88433273,0.00041678,30]
[420887163,1776701042572,-171.12740107,0.00041678,30]
[420887164,1776701042603,-215.95999738,0.00041678,30]
[420887165,1776701042635,-169.86911132,0.00041678,30]
[420887166,1776701042666,-186.48874162,0.00041678,30]
[420887167,1776701042696,-150.99476562,0.00041678,30]
[420887168,1776701042728,-179.16416392,0.00041678,30]
[420887169,1776701042761,-154.4025686,0.00041678,30]
[420887170,1776701042793,-161.25883824,0.00041678,30]
[420887171,1776701042824,-197.24895777,0.00041678,30]
[420887172,1776701042855,-161.2159214,0.00041678,30]
[420887173,1776701042887,-184.18230539,0.00041678,30]
[420887174,1776701042918,-157.18151523,0.00041683,120]
[420887175,1776701043345,-268.43923741,0.00041688,120]
[420887176,1776701043378,-171.12740107,0.00041688,120]
[420887177,1776701043409,-215.95999738,0.00041688,120]
[420887178,1776701043441,-169.86911132,0.00041688,120]
[420887179,1776701043472,-186.48874162,0.00041688,120]
[420887180,1776701043503,-150.99476562,0.00041688,120]
[420887181,1776701043536,-179.16416392,0.00041688,120]
[420887182,1776701043568,-154.4025686,0.00041688,120]
[420887183,1776701043601,-161.25883824,0.00041688,120]
[420887184,1776701043634,-197.24895777,0.00041688,120]
[420887185,1776701043669,-161.2159214,0.00041688,120]
[420887186,1776701043701,-178.0,0.000417,120]
[420887187,1776701043734,-1000.0,0.000417,45]
[420887188,1776701043767,-1000.0,0.000417,55]
[420887189,1776701043800,-10171.0,0.000417,117]
[420887190,1776701043834,-1393.8,0.00041716,120]
[420887191,1776701043866,-496.75491426,0.0004172,120]
[420887192,1776701043900,-496.75491426,0.00041728,120]
[420887193,1776701043933,-1661.32,0.0004174,120]
[420887194,1776701043965,-496.75491426,0.00041758,120]
[420887195,1776701043998,-200.0,0.00041788,120]
[420887196,1776701044032,-356.7,0.00041793,120]
[420887197,1776701044064,-399.24176754,0.000418,90]
[420887198,1776701044097,-1613.108,0.000418,30]
[420887199,1776701044130,-1613.1,0.000418,60]
[420887200,1776701044162,-100000.0,0.000418,60]
[420887201,1776701044195,-100000.0,0.000418,65]
[420887202,1776701044228,-404.82,0.00041815,120]
[420887203,1776701044261,-1393.8,0.00041816,120]
[420887204,1776701044294,-5000.0,0.00041869,60]
[420887205,1776701044326,-150.0,0.00041869,60]
[420887206,1776701044358,-5000.0,0.00041869,60]
[420887207,1776701044390,-5000.0,0.00041869,60]
[420887208,1776701044422,-4972.1207384,0.00041869,60]
[420887209,1776701044454,-3929.52617266,0.00041869,60]
[420887210,1776701044485,-1210.32390968,0.0004188,120]
[420887211,1776701044519,-1778.0,0.00041888,120]
[420887212,1776701044553,-1778.0,0.00041888,120]
[420887213,1776701044586,-496.75491426,0.0004189,120]
[420887214,1776701044618,-1778.0,0.00041898,120]
[420887215,1776701044651,-1778.0,0.00041898,120]
[420887216,1776701044681,-1778.0,0.00041898,120]
[420887217,1776701044714,-1782.52,0.00041898,120]
[420887218,1776701044746,-4370.11303306,0.000419,30]
[420887219,1776701044778,-2506.58169459,0.000419,120]
[420887220,1776701044811,-1726.24073383,0.000419,120]
[420887221,1776701044843,-5000.0,0.000419,120]
[420887222,1776701044876,-200.91,0.00041908,120]
[420887223,1776701044908,-1778.0,0.00041908,120]
[420887224,1776701044942,-1778.0,0.00041908,120]
[420887225,1776701044977,-1778.0,0.00041908,120]
[420887226,1776701045010,-1778.0,0.00041908,120]
[420887227,1776701045045,-1393.8,0.00041916,120]
[420887228,1776701045077,-1500.0,0.00041917,40]
[420887229,1776701045109,-1500.0,0.00041917,40]
[420887230,1776701045142,-7231.0,0.00041918,120]
[420887231,1776701045175,-496.75491426,0.00041929,120]
[420887232,1776701045207,-49999.0,0.0004194,120]
[420887233,1776701045239,-49999.0,0.0004194,120]
[420887234,1776701045271,-50000.0,0.0004194,120]
[420887235,1776701045305,-50000.0,0.0004194,120]
[420887236,1776701045337,-50000.0,0.0004194,120]
[420887237,1776701045370,-50000.0,0.0004194,120]
[420887238,1776701045404,-50000.0,0.0004194,120]
[420887239,1776701045439,-50000.0,0.0004194,120]
[420887240,1776701045473,-50000.0,0.0004194,120]
[420887241,1776701045507,-50000.0,0.0004194,120]
[420887242,1776701045543,-50000.0,0.0004194,120]
[420887243,1776701045577,-50000.0,0.0004194,120]
[420887244,1776701045610,-50000.0,0.0004194,120]
[420887245,1776701045643,-50000.0,0.0004194,120]
[420887246,1776701045676,-50000.0,0.0004194,120]
[420887247,1776701045709,-50000.0,0.0004194,120]
[420887248,1776701045742,-50000.0,0.0004194,120]
[420887249,1776701045774,-50000.0,0.0004194,120]
[420887250,1776701045807,-50000.0,0.0004194,120]
[420887251,1776701045839,-50000.0,0.0004194,120]
[420887252,1776701045870,-50000.0,0.0004194,120]
[420887253,1776701045903,-50000.0,0.0004194,120]
[420887254,1776701045934,-50000.0,0.0004194,120]
[420887255,1776701045966,-50000.0,0.0004194,120]
[420887256,1776701045997,-31049.15078106,0.0004194,120]
[420887257,1776701046029,-49999.0,0.0004194,120]
[420887258,1776701046062,-49999.0,0.0004194,120]
[420887259,1776701046094,-50000.0,0.0004194,120]
[420887260,1776701046126,-50000.0,0.0004194,120]
[420887261,1776701046158,-50000.0,0.0004194,120]
[420887262,1776701046189,-50000.0,0.0004194,120]
[420887263,1776701046219,-50000.0,0.0004194,120]
[420887264,1776701046250,-50000.0,0.0004194,120]
[420887265,1776701046281,-50000.0,0.0004194,120]
[420887266,1776701046312,-31006.56564223,0.0004194,120]
[420887267,1776701046344,-234.88433273,0.00041952,30]
[420887268,1776701046374,-150.99476562,0.00041952,30]
[420887269,1776701046406,-154.4025686,0.00041952,30]
[420887270,1776701046438,-500.0,0.00041958,120]
[420887271,1776701046470,-50000.0,0.0004196,120]
[420887272,1776701046500,-268.43923741,0.00041962,120]
[420887273,1776701046532,-150.99476562,0.00041962,120]
[420887274,1776701046564,-154.4025686,0.00041962,120]
[420887275,1776701046601,-28497.48,0.0004197,120]
[420887276,1776701046632,-50000.0,0.0004197,120]
[420887277,1776701046663,-50000.0,0.0004197,120]
[420887278,1776701047079,-50000.0,0.0004197,120]
[420887279,1776701047114,-50000.0,0.0004197,120]
[420887280,1776701047149,-50000.0,0.0004197,120]
[420887281,1776701047183,-50000.0,0.0004197,120]
[420887282,1776701047217,-50000.0,0.0004197,120]
[420887283,1776701047250,-50000.0,0.0004197,120]
[420887284,1776701047282,-50000.0,0.0004197,120]
[420887285,1776701047315,-50000.0,0.0004197,120]
[420887286,1776701047350,-50000.0,0.0004197,120]
[420887287,1776701047384,-50000.0,0.0004197,120]
[420887288,1776701047417,-50000.0,0.0004197,120]
[420887289,1776701047449,-50000.0,0.0004197,120]
[420887290,1776701047482,-50000.0,0.0004197,120]
[420887291,1776701047515,-50000.0,0.0004197,120]
[420887292,1776701047548,-50000.0,0.0004197,120]
[420887293,1776701047581,-50000.0,0.0004197,120]
[420887294,1776701047615,-50000.0,0.0004197,120]
[420887295,1776701047647,-50000.0,0.0004197,120]
[420887296,1776701047680,-50000.0,0.0004197,120]
[420887297,1776701047712,-36899.0,0.0004197,120]
[420887298,1776701047746,-810.61,0.00041972,120]
[420887299,1776701047782,-100000.0,0.0004198,30]
[420887300,1776701047819,-100000.0,0.0004198,35]
[420887301,1776701047854,-1000.0,0.0004198,120]
[420887302,1776701047888,-1000.0,0.0004198,120]
[420887303,1776701047924,-1000.0,0.0004198,120]
[420887304,1776701047959,-1000.0,0.0004198,120]
[420887305,1776701047995,-1000.0,0.0004198,120]
[420887306,1776701048031,-1000.0,0.0004198,120]
[420887307,1776701048065,-1000.0,0.0004198,120]
[420887308,1776701048099,-1000.0,0.0004198,120]
[420887309,1776701048134,-1000.0,0.0004198,120]
[420887310,1776701048169,-1000.0,0.0004198,120]
[420887311,1776701048203,-1000.0,0.0004198,120]
[420887312,1776701048239,-1000.0,0.0004198,120]
[420887313,1776701048272,-50000.0,0.0004198,120]
[420887314,1776701048306,-1000.0,0.00041984,31]
[420887315,1776701048338,-500.0,0.00041985,120]
[420887316,1776701048371,-50000.0,0.0004199,120]
[420887317,1776701048403,-11610.86441225,0.00041999,30]
[420887318,1776701048436,-5000.0,0.00042,51]
[420887319,1776701048468,-500.0,0.00042,45]
[420887320,1776701048501,-500.0,0.00042,45]
[420887321,1776701048533,-500.0,0.00042,45]
[420887322,1776701048566,-500.0,0.00042,45]
[420887323,1776701048599,-500.0,0.00042,45]
[420887324,1776701048633,-1000.0,0.00042,30]
[420887325,1776701048667,-1000.0,0.00042,60]
[420887326,1776701048699,-161.0,0.00042,120]
[420887327,1776701048732,-538.05814948,0.00042,120]
[420887328,1776701048764,-1000.0,0.00042,120]
[420887329,1776701048796,-500.0,0.00042,120]
[420887330,1776701048829,-500.0,0.00042,120]
[420887331,1776701048863,-600.0,0.00042,120]
[420887332,1776701048896,-1999.98540616,0.00042,120]
[420887333,1776701048929,-165.80033757,0.00042,120]
[420887334,1776701048963,-500.0,0.00042,45]
[420887335,1776701048997,-500.0,0.00042,45]
[420887336,1776701049032,-500.0,0.00042,45]
[420887337,1776701049066,-500.0,0.00042,45]
[420887338,1776701049101,-500.0,0.00042,45]
[420887339,1776701049133,-500.0,0.00042,45]
[420887340,1776701049168,-500.0,0.00042,45]
[420887341,1776701049199,-293.43549175,0.00042,120]
[420887342,1776701049232,-500.0,0.00042,45]
[420887343,1776701049264,-425.90865558,0.00042,120]
[420887344,1776701049296,-500.0,0.00042,45]
[420887345,1776701049326,-2475.69656834,0.00042,61]
[420887346,1776701049359,-500.0,0.00042,45]
[420887347,1776701049392,-500.0,0.00042,45]
[420887348,1776701049423,-1500.0,0.00042,120]
[420887349,1776701049456,-500.0,0.00042,45]
[420887350,1776701049488,-500.0,0.00042,45]
[420887351,1776701049521,-500.0,0.00042,45]
[420887352,1776701049555,-500.0,0.00042,45]
[420887353,1776701049588,-500.0,0.00042,45]
[420887354,1776701049620,-202.70211908,0.00042,120]
[420887355,1776701049653,-500.0,0.00042,45]
[420887356,1776701049687,-500.0,0.00042,45]
[420887357,1776701049720,-500.0,0.00042,45]
[420887358,1776701049753,-1000.0,0.00042,120]
[420887359,1776701049785,-2000.0,0.00042,120]
[420887360,1776701049817,-2000.0,0.00042,120]
[420887361,1776701049849,-2000.0,0.00042,120]
[420887362,1776701049881,-2000.0,0.00042,120]
[420887363,1776701049913,-2000.0,0.00042,120]
[420887364,1776701049945,-2000.0,0.00042,120]
[420887365,1776701049977,-2000.0,0.00042,120]
[420887366,1776701050009,-2000.0,0.00042,120]
[420887367,1776701050040,-581.51,0.00042,120]
[420887368,1776701050072,-2000.0,0.00042,120]
[420887369,1776701050103,-1000.0,0.00042,60]
[420887370,1776701050135,-290.65255043,0.00042,120]
[420887371,1776701050165,-1000.0,0.00042,60]
[420887372,1776701050196,-583.0,0.00042,60]
[420887373,1776701050228,-70000.0,0.00042,90]
[420887374,1776701050259,-385.8277679,0.00042,120]
[420887375,1776701050290,-1099.9914602,0.00042,120]
[420887376,1776701050320,-377.22409808,0.00042,120]
[420887377,1776701050351,-212.36753822,0.00042,120]
[420887378,1776701050382,-919.39572761,0.00042,120]
[420887379,1776701050412,-1287.07999753,0.00042,120]
[420887380,1776701050442,-341.30296449,0.00042,120]
[420887381,1776701050875,-1378.60718714,0.00042,60]
[420887382,1776701050907,-982.5185309,0.00042,120]
[420887383,1776701050939,-3921.1835228,0.00042,30]
[420887384,1776701050972,-1000.0,0.00042,120]
[420887385,1776701051004,-2000.0,0.00042,60]
[420887386,1776701051037,-1001.97512,0.00042,120]
[420887387,1776701051068,-2881.0,0.00042,120]
[420887388,1776701051101,-10000.0,0.00042,60]
[420887389,1776701051132,-3131.0,0.00042,120]
[420887390,1776701051165,-2000.0,0.00042,120]
[420887391,1776701051197,-1000.0,0.00042,120]
[420887392,1776701051229,-409.19061543,0.00042,120]
[420887393,1776701051270,-56513.32982,0.00042,120]
[420887394,1776701051303,-490.35735931,0.00042,120]
[420887395,1776701051335,-10000.0,0.00042,120]
[420887396,1776701051368,-22000.0,0.00042,120]
[420887397,1776701051401,-22000.0,0.00042,120]
[420887398,1776701051434,-22000.0,0.00042,120]
[420887399,1776701051467,-22000.0,0.00042,120]
[420887400,1776701051503,-1000.0,0.00042,120]
[420887401,1776701051537,-1000.0,0.00042,120]
[420887402,1776701051572,-1000.0,0.00042,120]
[420887403,1776701051608,-1000.0,0.00042,120]
[420887404,1776701051643,-1000.0,0.00042,120]
[420887405,1776701051677,-1000.0,0.00042,120]
[420887406,1776701051712,-1000.0,0.00042,120]
[420887407,1776701051749,-1000.0,0.00042,120]
[420887408,1776701051783,-1000.0,0.00042,120]
[420887409,1776701051819,-534.0,0.00042,120]
[420887410,1776701051860,-50000.0,0.00042,120]
[420887411,1776701051896,-50000.0,0.00042,120]
[420887412,1776701051932,-1000.0,0.00042,120]
[420887413,1776701051968,-21712.02437961,0.00042,120]
[420887414,1776701063440,3125.06,7.687e-05,2]
[420887415,1776701064142,251.0,7.687e-05,2]
[420887416,1776701067804,150.0,8.22e-05,2]
[420887417,1776701103764,-150.0,0.00021644,30]
[420887418,1776701103797,-162.89939758,0.00021644,30]
[420887419,1776701103834,-500.0,0.00023872,120]
[420887420,1776701103870,-500.0,0.00024776,120]
[420887421,1776701103907,-500.0,0.00025681,120]
[420887422,1776701103942,-500.0,0.00026585,120]
[420887423,1776701103981,-500.0,0.00027489,120]
[420887424,1776701104022,-500.0,0.00028393,120]
[420887425,1776701104060,-500.0,0.00029297,120]
[420887426,1776701104102,-500.0,0.00030201,120]
[420887427,1776701104140,-500.0,0.00031105,120]
[420887428,1776701104176,-12592.94758807,0.00031138,70]
[420887429,1776701104213,-260.0,0.00031986,30]
[420887430,1776701104246,-243.0,0.00031986,30]
[420887431,1776701104278,-500.0,0.00032009,120]
[420887432,1776701104322,-500.0,0.00032913,120]
[420887433,1776701104355,-260.0,0.00032986,30]
[420887434,1776701104388,-243.0,0.00032986,30]
[420887435,1776701104421,-500.0,0.00033032,60]
[420887436,1776701104454,-500.0,0.00033032,60]
[420887437,1776701104487,-500.0,0.00033032,60]
[420887438,1776701104522,-500.0,0.00033032,60]
[420887439,1776701104554,-500.0,0.00033032,60]
[420887440,1776701104587,-500.0,0.00033032,60]
[420887441,1776701104620,-500.0,0.00033032,60]
[420887442,1776701104655,-500.0,0.00033032,60]
[420887443,1776701104691,-500.0,0.00033032,60]
[420887444,1776701104724,-500.0,0.00033032,60]
[420887445,1776701104757,-500.0,0.00033032,60]
[420887446,1776701104790,-500.0,0.00033032,60]
[420887447,1776701104824,-500.0,0.00033032,60]
[420887448,1776701104859,-500.0,0.00033032,60]
[420887449,1776701104892,-500.0,0.00033032,60]
[420887450,1776701104926,-500.0,0.00033032,60]
[420887451,1776701104961,-500.0,0.00033032,60]
[420887452,1776701104996,-837.2288409,0.00033032,60]
[420887453,1776701105032,-500.0,0.00033818,120]
[420887454,1776701105070,-260.0,0.00033986,30]
[420887455,1776701105103,-243.0,0.00033986,30]
[420887456,1776701105137,-500.0,0.00034722,120]
[420887457,1776701105172,-260.0,0.00034986,30]
[420887458,1776701105205,-243.0,0.00034986,30]
[420887459,1776701105246,-500.0,0.00035626,120]
[420887460,1776701105278,-250.0,0.00035714,39]
[420887461,1776701105310,-260.0,0.00035986,30]
[420887462,1776701105342,-243.0,0.00035986,30]
[420887463,1776701105375,-500.0,0.0003653,120]
[420887464,1776701105408,-260.0,0.00036986,30]
[420887465,1776701105440,-243.0,0.00036986,30]
[420887466,1776701105473,-27478.58440741,0.000372,120]
[420887467,1776701105506,-27478.58440741,0.000372,120]
[420887468,1776701105539,-27478.58440741,0.000372,120]
[420887469,1776701105571,-27478.58440741,0.000372,120]
[420887470,1776701105605,-27478.58440741,0.000372,120]
[420887471,1776701105639,-500.0,0.00037434,120]
[420887472,1776701105674,-260.0,0.00037986,30]
[420887473,1776701105707,-243.0,0.00037986,30]
[420887474,1776701105740,-2000.0,0.00038099,120]
[420887475,1776701105773,-2000.0,0.00038099,120]
[420887476,1776701105808,-2000.0,0.00038241,120]
[420887477,1776701105843,-500.0,0.00038338,120]
[420887478,1776701106308,-2000.0,0.00038384,120]
[420887479,1776701106344,-2000.0,0.00038527,120]
[420887480,1776701106379,-2000.0,0.0003867,120]
[420887481,1776701106412,-2000.0,0.00038802,120]
[420887482,1776701106447,-2000.0,0.00038812,120]
[420887483,1776701106482,-174.05,0.00038831,120]
[420887484,1776701106515,-288.03,0.00038831,120]
[420887485,1776701106549,-2000.0,0.00038955,120]
[420887486,1776701106583,-2000.0,0.00039098,120]
[420887487,1776701106617,-2000.0,0.0003924,120]
[420887488,1776701106653,-500.0,0.00039242,120]
[420887489,1776701106687,-2000.0,0.00039383,120]
[420887490,1776701106719,-2000.0,0.00039505,120]
[420887491,1776701106808,-2000.0,0.00039526,120]
[420887492,1776701106867,-2000.0,0.00039668,120]
[420887493,1776701106900,-2000.0,0.00039811,120]
[420887494,1776701106935,-2000.0,0.00039954,120]
[420887495,1776701106973,-2000.0,0.00040097,120]
[420887496,1776701107006,-297.145,0.00040111,30]
[420887497,1776701107041,-500.0,0.00040146,120]
[420887498,1776701107076,-2000.0,0.00040209,120]
[420887499,1776701107110,-2000.0,0.00040239,120]
[420887500,1776701107145,-2000.0,0.00040382,120]
[420887501,1776701107180,-2000.0,0.00040525,120]
[420887502,1776701107215,-2000.0,0.00040667,120]
[420887503,1776701107248,-2000.0,0.0004081,120]
[420887504,1776701107283,-2000.0,0.00040912,120]
[420887505,1776701107317,-2000.0,0.00040953,120]
[420887506,1776701107351,-500.0,0.00040988,120]
[420887507,1776701107387,-500.0,0.00041,45]
[420887508,1776701107423,-500.0,0.0004105,120]
[420887509,1776701107462,-2000.0,0.00041095,120]
[420887510,1776701107499,-1000.0,0.00041096,60]
[420887511,1776701107535,-1000.0,0.00041096,60]
[420887512,1776701107571,-1000.0,0.00041096,60]
[420887513,1776701107605,-1000.0,0.00041096,60]
[420887514,1776701107640,-1000.0,0.00041096,60]
[420887515,1776701107675,-1000.0,0.00041096,60]
[420887516,1776701107710,-1000.0,0.00041096,60]
[420887517,1776701107748,-1000.0,0.00041096,60]
[420887518,1776701107784,-1000.0,0.00041096,60]
[420887519,1776701107820,-350.0,0.00041096,60]
[420887520,1776701107857,-2000.0,0.00041238,120]
[420887521,1776701107896,-8000.0,0.00041273,120]
[420887522,1776701107932,-2000.0,0.00041381,120]
[420887523,1776701107971,-500.0,0.000415,45]
[420887524,1776701108008,-181.15,0.00041507,30]
[420887525,1776701108046,-2000.0,0.00041524,120]
[420887526,1776701108083,-2000.0,0.00041615,120]
[420887527,1776701108120,-2000.0,0.00041666,120]
[420887528,1776701108155,-533.0,0.00041688,30]
[420887529,1776701108190,-700.0,0.00041726,120]
[420887530,1776701108224,-250.0,0.00041727,93]
[420887531,1776701108258,-161.0,0.000418,120]
[420887532,1776701108292,-2000.0,0.00041809,120]
[420887533,1776701108327,-2000.0,0.00041952,120]
[420887534,1776701108363,-500.0,0.00041955,120]
[420887535,1776701108399,-242.18054602,0.00041972,30]
[420887536,1776701108433,-28287.97562039,0.00042,120]
[420887537,1776701108467,-50000.0,0.00042,120]
[420887538,1776701108499,-50000.0,0.00042,120]
[420887539,1776701108532,-1161.72425283,0.00042,30]
[420887540,1776701108565,-1161.72425283,0.00042,30]
[420887541,1776701108598,-1161.72425283,0.00042,30]
[420887542,1776701108630,-1161.72425283,0.00042,30]
[420887543,1776701108662,-1161.72425283,0.00042,30]
[420887544,1776701108694,-1161.72425283,0.00042,30]
[420887545,1776701108726,-1161.72425283,0.00042,30]
[420887546,1776701108759,-1161.72425283,0.00042,30]
[420887547,1776701108791,-1161.72425283,0.00042,30]